bitfinex-derivatives/quotes_BTCF0:USTF0_20251208
["timestamp","ask_amount","ask_price","bid_price","bid_amount"]
[1765220410992,0.0680754,89967.0,89966.0,0.05757]
[1765220411294,0.08382964,89967.0,89966.0,0.05757]
[1765220411597,0.02686964,89967.0,89966.0,0.05757]
[1765220412292,0.02686964,89967.0,89966.0,0.06057]
[1765220412483,0.09712504,89967.0,89966.0,0.06057]
[1765220412687,0.09712504,89967.0,89966.0,0.003]
[1765220412891,0.09712504,89967.0,89966.0,0.004]
[1765220413410,0.09712504,89967.0,89966.0,0.05922]
[1765220413596,0.06715504,89967.0,89966.0,0.05922]
[1765220413892,0.02686964,89967.0,89966.0,0.0703355]
[1765220414286,0.02167999,89967.0,89966.0,0.0673355]
[1765220414496,0.00111124,89990.0,89984.0,0.05522]
[1765220414497,0.0111131,89985.0,89984.0,0.05522]
[1765220414695,0.11874441,89989.0,89976.0,0.0172]
[1765220414999,0.0111136,89982.0,89981.0,0.05522]
[1765220415392,0.0111126,89989.0,89981.0,0.05522]
[1765220415592,0.00111124,89990.0,89989.0,0.0663326]
[1765220415989,0.00111124,89990.0,89989.0,0.05522]
[1765220416389,0.03074124,89990.0,89989.0,0.05522]
[1765220416791,0.03274124,89990.0,89989.0,0.05522]
[1765220417193,0.00311124,89990.0,89989.0,0.05522]
[1765220417389,0.0592097,89993.0,89989.0,0.05522]
[1765220417589,0.0592097,89996.0,89995.0,0.0111119]
[1765220417792,0.0592097,89996.0,89995.0,0.0663319]
[1765220418393,0.0592097,89997.0,89996.0,0.05522]
[1765220418899,0.0407413,90000.0,89999.0,0.05522]
[1765220419099,0.02963,90000.0,89999.0,0.05522]
[1765220419400,0.0111106,90006.0,90005.0,0.05522]
[1765220419899,0.0707106,90006.0,90005.0,0.05522]
[1765220420301,0.0707106,90006.0,90005.0,0.02812]
[1765220420794,0.0707106,90006.0,90005.0,0.03112]
[1765220421001,0.0707106,90006.0,90005.0,0.003]
[1765220421801,0.0707106,90006.0,90005.0,0.03212]
[1765220422496,0.0707106,90006.0,90005.0,0.05922]
[1765220422697,0.0707106,90006.0,90005.0,0.0703307]
[1765220422999,0.00022242,90009.0,90008.0,0.0663303]
[1765220423198,2.42e-06,90009.0,90008.0,0.0663303]
[1765220424391,0.05914815,90021.0,90020.0,0.0663288]
[1765220424690,0.0111061,90042.0,90012.0,0.0172]
[1765220424691,0.05914815,90030.0,90029.0,0.0663277]
[1765220424891,0.05914815,90030.0,90029.0,0.05522]
[1765220425096,0.0707076,90030.0,90029.0,0.05522]
[1765220425308,0.0163,90048.0,90016.0,0.02812]
[1765220425309,0.02963,90017.0,90016.0,0.02812]
[1765220425493,0.02963,90017.0,90016.0,0.0392293]
[1765220425692,0.02963,90017.0,90016.0,0.05522]
[1765220425889,0.02963,90017.0,90016.0,0.0663293]
[1765220426103,0.02963,90022.0,90021.0,0.0392286]
[1765220426391,0.0863726,90022.0,90021.0,0.0392286]
[1765220426602,0.0863726,90022.0,90021.0,0.0663286]
[1765220426794,0.0863726,90022.0,90021.0,0.05522]
[1765220427102,0.0863726,90022.0,90021.0,0.0663287]
[1765220427490,0.0267726,90022.0,90021.0,0.0663287]
[1765220428204,0.02963,90040.0,90039.0,0.0111065]
[1765220428403,0.08636745,90040.0,90039.0,0.0111065]
[1765220428704,0.08636745,90040.0,90039.0,0.0663265]
[1765220429296,0.10047375,90040.0,90039.0,0.05522]
[1765220429502,0.0596,90031.0,90030.0,0.03939424]
[1765220429702,0.08636745,90031.0,90030.0,0.03939424]
[1765220430100,0.08636745,90031.0,90030.0,0.06649424]
[1765220430504,0.08636745,90031.0,90030.0,0.00016664]
[1765220430701,0.08836745,90031.0,90030.0,0.00016664]
[1765220430895,0.09036745,90031.0,90030.0,0.00016664]
[1765220431101,0.09036745,90031.0,90010.0,0.03945816]
[1765220431102,0.0707099,90011.0,90010.0,0.03945816]
[1765220431394,0.09743803,90011.0,90010.0,0.02812]
[1765220431711,0.09743803,90011.0,90000.0,0.27572]
[1765220431712,0.02963,90001.0,90000.0,0.0663313]
[1765220432008,0.0111085,90023.0,90000.0,0.0663313]
[1765220432009,0.0707102,90009.0,90008.0,0.0663303]
[1765220432308,0.08632819,90009.0,90008.0,0.0663303]
[1765220433613,0.02672819,90009.0,90008.0,0.0663303]
[1765220433816,0.02672819,90009.0,90008.0,0.0693303]
[1765220434916,0.08632819,90009.0,90008.0,0.0422303]
[1765220435122,0.02672819,90009.0,90008.0,0.0703303]
[1765220435509,0.00016632,90010.0,90009.0,0.05522]
[1765220436509,0.02695681,90010.0,90009.0,0.05522]
[1765220436726,0.02695681,90010.0,90008.0,0.0151103]
[1765220436727,0.0596,90009.0,90008.0,0.004]
[1765220436917,0.0707112,90001.0,90000.0,0.03949363]
[1765220437218,0.02679049,90001.0,90000.0,0.07242]
[1765220438020,0.02679049,90001.0,90000.0,0.08887387]
[1765220439120,0.08639049,90001.0,90000.0,0.005]
[1765220439513,0.02963,89997.0,89996.0,0.0392317]
[1765220439709,0.05642049,89997.0,89996.0,0.07758405]
[1765220440613,0.05642049,89997.0,89996.0,0.06647235]
[1765220440815,0.08639049,89997.0,89996.0,0.05922]
[1765220441018,0.08639049,89997.0,89996.0,0.004]
[1765220441223,0.08639049,89997.0,89996.0,0.005]
[1765220441422,0.08639049,89997.0,89996.0,0.06022]
[1765220441423,0.02679049,89997.0,89996.0,0.06022]
[1765220441629,0.05914815,90003.0,90002.0,0.05522]
[1765220441929,0.08610312,90003.0,90002.0,0.05522]
[1765220442516,0.02695497,90003.0,90002.0,0.067551]
[1765220442823,0.05917501,90003.0,90002.0,0.067551]
[1765220443018,0.11816501,90003.0,90002.0,0.067551]
[1765220443220,0.14511998,90003.0,90002.0,0.069551]
[1765220443418,0.08617429,90003.0,90002.0,0.069551]
[1765220443619,0.02695497,90003.0,90002.0,0.069551]
[1765220444019,0.00016632,90010.0,90009.0,0.05659]
[1765220444318,0.02715724,90010.0,90009.0,0.05659]
[1765220445622,0.02715724,90010.0,90009.0,0.05759]
[1765220445824,0.02815724,90010.0,90009.0,0.05759]
[1765220446634,0.02715724,90010.0,90009.0,0.05759]
[1765220447523,0.02715724,90010.0,90009.0,0.05859]
[1765220448526,0.02715724,90010.0,90009.0,0.06059]
[1765220449334,0.09725724,90010.0,90009.0,0.06059]
[1765220449634,0.08614724,90010.0,90009.0,0.06059]
[1765220449824,0.02715724,90010.0,90009.0,0.06059]
[1765220451420,0.08614724,90010.0,90009.0,0.06059]
[1765220452238,0.02715724,90010.0,90009.0,0.06059]
[1765220453336,0.05921932,90018.0,90017.0,0.05659]
[1765220453539,0.13862529,90045.0,90013.0,0.01354]
[1765220453540,0.05921932,90026.0,90025.0,0.05659]
[1765220453738,0.05921932,90027.0,90026.0,0.0676981]
[1765220454140,0.05921932,90028.0,90027.0,0.05659]
[1765220454741,0.11820932,90028.0,90027.0,0.05659]
[1765220455039,0.11820932,90028.0,90027.0,1.55659]
[1765220455241,0.12020932,90028.0,90027.0,1.55659]
[1765220456646,0.12220932,90028.0,90027.0,1.55659]
[1765220457437,0.004,90028.0,90027.0,1.567698]
[1765220458748,0.06299,90028.0,90027.0,1.55659]
[1765220459040,0.004,90028.0,90027.0,1.55659]
[1765220460233,0.05921932,90038.0,90037.0,0.0692867]
[1765220460433,0.05921932,90054.0,90053.0,0.05702]
[1765220460637,0.05921932,90057.0,90056.0,0.05702]
[1765220460837,0.05921932,90058.0,90057.0,0.0859543]
[1765220461038,0.05921932,90059.0,90058.0,0.05702]
[1765220461342,0.05921932,90060.0,90059.0,0.068124]
[1765220461536,0.08776932,90069.0,90068.0,0.05702]
[1765220461739,0.02855,90069.0,90068.0,0.0681229]
[1765220461942,0.05921932,90074.0,90072.0,0.0681224]
[1765220462145,0.05765169,90074.0,90073.0,0.05702]
[1765220462337,0.0690117,90078.0,90077.0,0.05702]
[1765220462537,0.0690117,90078.0,90077.0,0.02818]
[1765220462741,0.0690117,90078.0,90059.0,0.00316654]
[1765220462742,0.0690139,90060.0,90059.0,0.00316654]
[1765220463349,0.05791,90028.0,90025.0,0.0111081]
[1765220463643,0.0690169,90036.0,90035.0,0.02818]
[1765220463841,0.02855,90043.0,90042.0,0.02884]
[1765220464048,0.0690153,90049.0,90048.0,0.02818]
[1765220464252,0.0690153,90049.0,90048.0,0.05702]
[1765220464449,0.05791,90049.0,90048.0,0.02818]
[1765220464644,0.05791,90049.0,90048.0,0.0681254]
[1765220464645,0.05629809,90049.0,90048.0,0.0681254]
[1765220464839,0.05791,90055.0,90054.0,0.02818]
[1765220465243,0.05791,90055.0,90039.0,0.00016654]
[1765220465244,0.05791,90040.0,90039.0,0.05718654]
[1765220465544,0.08473903,90040.0,90039.0,0.05718654]
[1765220466134,0.08473903,90040.0,90039.0,0.00016654]
[1765220466339,0.08473903,90040.0,90039.0,0.05718654]
[1765220466547,0.02682903,90040.0,90039.0,0.05718654]
[1765220466945,0.02682903,90040.0,90039.0,0.06018654]
[1765220467341,0.0111049,90053.0,90049.0,0.0111052]
[1765220467544,0.08474154,90052.0,90051.0,0.02818]
[1765220467843,0.08474154,90052.0,90051.0,0.05702]
[1765220469246,0.08474154,90052.0,90051.0,0.06002]
[1765220469551,0.08474154,90052.0,90051.0,0.004]
[1765220472746,0.05736,90040.0,90039.0,0.00016654]
[1765220472953,0.09529784,90040.0,90039.0,0.00016654]
[1765220473147,0.09529784,90040.0,90007.0,0.0111104]
[1765220473148,0.02833,90015.0,90014.0,0.02784]
[1765220473451,0.05736,90007.0,90006.0,0.02784]
[1765220473752,0.05736,90007.0,89988.0,0.0111128]
[1765220473753,0.0111121,89994.0,89988.0,0.0111127]
[1765220473957,0.01745,90002.0,89980.0,0.24771888]
[1765220474252,0.00016664,90000.0,89999.0,0.05599]
[1765220474441,0.02690472,90000.0,89999.0,0.05599]
[1765220474648,0.00016664,90000.0,89999.0,0.05599]
[1765220475348,0.00016664,90000.0,89999.0,0.05899]
[1765220476847,0.07913747,90032.0,90010.0,0.23127888]
[1765220477053,0.05736,90015.0,90014.0,0.02784]
[1765220477253,0.08409106,90015.0,90014.0,0.02784]
[1765220477558,0.02833,90021.0,90020.0,0.05599]
[1765220477858,0.01127406,90030.0,90029.0,0.05599]
[1765220478045,0.01127406,90030.0,90029.0,0.02784]
[1765220478046,0.06863406,90030.0,90029.0,0.02784]
[1765220478958,0.00016646,90030.0,90029.0,0.05599]
[1765220479557,0.01745,90057.0,90049.0,0.05599]
[1765220479860,0.05736,90050.0,90049.0,0.05599]
[1765220480152,0.0111048,90053.0,90040.0,0.23127888]
[1765220480353,0.0111052,90050.0,90049.0,0.02784]
[1765220480548,0.0394352,90050.0,90049.0,0.02784]
[1765220480854,0.0684652,90050.0,90049.0,0.02784]
[1765220481047,0.05736,90050.0,90049.0,0.02784]
[1765220481445,0.06036,90050.0,90049.0,0.05599]
[1765220481645,0.003,90050.0,90049.0,0.06754934]
[1765220481849,0.004,90050.0,90049.0,0.06754934]
[1765220482457,0.05736,90045.0,90040.0,0.01127294]
[1765220482651,0.05736,90041.0,90040.0,0.00016664]
[1765220483555,0.05736,90041.0,90040.0,0.00416664]
[1765220483953,0.05736,90041.0,90040.0,0.00016664]
[1765220484157,0.05736,90041.0,90040.0,0.00416664]
[1765220484464,0.05736,90041.0,90040.0,0.06015664]
[1765220484758,0.0684662,90041.0,90040.0,0.07126294]
[1765220485063,0.0684662,90041.0,90040.0,0.00716664]
[1765220485847,0.0684662,90041.0,90040.0,0.03500664]
[1765220486163,0.0684662,90041.0,90040.0,0.00716664]
[1765220488258,0.05736,90041.0,90040.0,0.06315664]
[1765220489661,0.05736,90041.0,90040.0,0.00716664]
[1765220489879,0.05736,90021.0,90020.0,0.0111087]
[1765220490065,0.05736,90021.0,90020.0,0.0389487]
[1765220490260,0.05736,90021.0,90013.0,0.0293473]
[1765220490261,0.05736,90018.0,90017.0,0.0111092]
[1765220490463,0.0394399,90012.0,90011.0,0.05599]
[1765220490656,0.02833,90012.0,90011.0,0.05599]
[1765220490862,0.05736,90012.0,90011.0,0.06894869]
[1765220491456,0.05736,90019.0,90018.0,0.0670989]
[1765220491968,0.00016664,90021.0,90020.0,0.05599]
[1765220492163,0.05752664,90021.0,90020.0,0.009]
[1765220492758,0.05736,90015.0,90014.0,0.0389495]
[1765220493256,0.05736,90015.0,90014.0,0.05599]
[1765220493768,0.05736,90012.0,90011.0,0.001]
[1765220493968,0.05736,90012.0,90011.0,0.01421296]
[1765220494165,0.0394388,90020.0,90014.0,0.001]
[1765220494358,0.00016664,90021.0,90020.0,0.0670988]
[1765220495168,0.05752664,90021.0,90020.0,0.05599]
[1765220495369,0.05752664,90021.0,90013.0,0.0670996]
[1765220495370,0.02833,90014.0,90013.0,0.0670996]
[1765220495572,0.05736,90012.0,90011.0,0.001]
[1765220496958,0.05736,90007.0,90006.0,0.0111105]
[1765220497156,0.05736,90007.0,90006.0,0.0671005]
[1765220498267,0.05736,90013.0,90012.0,0.0389497]
[1765220498475,0.05736,90013.0,90012.0,0.0670997]
[1765220498860,0.07481,90013.0,90011.0,0.001]
[1765220499064,0.0684698,90012.0,90011.0,0.001]
[1765220499855,0.0684704,90007.0,90006.0,0.02884]
[1765220500557,0.0684704,90007.0,90006.0,0.0681005]
[1765220500772,0.05736,90007.0,90006.0,0.0681005]
[1765220500961,0.05736,90007.0,90006.0,0.0671005]
[1765220501465,0.02933,90013.0,90012.0,0.0389498]
[1765220501671,0.00016664,90021.0,90020.0,0.07243]
[1765220502063,0.05752664,90021.0,90020.0,0.05599]
[1765220502368,0.05752664,90021.0,90011.0,0.05938]
[1765220502369,0.0111099,90012.0,90011.0,0.05938]
[1765220502556,0.0388295,90015.0,90014.0,0.05938]
[1765220502756,0.02772,90015.0,90014.0,0.05938]
[1765220502963,0.0556,90015.0,90014.0,0.05938]
[1765220503757,0.0111093,90017.0,90015.0,0.0111094]
[1765220503973,0.0111089,90020.0,90019.0,0.05938]
[1765220504168,0.0389889,90020.0,90019.0,0.05938]
[1765220504564,0.0667094,90015.0,90014.0,0.03057]
[1765220504758,0.0667094,90015.0,90014.0,0.06038]
[1765220505774,0.0667094,90015.0,90014.0,0.001]
[1765220506074,0.0389909,90003.0,90002.0,0.07243686]
[1765220507472,0.0111094,90015.0,90014.0,0.05938]
[1765220507473,0.0389894,90015.0,90014.0,0.05938]
[1765220507674,0.06687534,90021.0,90020.0,0.05938]
[1765220508172,0.06687534,90021.0,90020.0,0.07663]
[1765220508373,0.00016664,90021.0,90020.0,0.07663]
[1765220509266,0.00316664,90021.0,90020.0,0.07663]
[1765220510665,0.00016664,90021.0,90020.0,0.07663]
[1765220510866,0.00016664,90021.0,90020.0,0.07763]
[1765220511874,0.00016664,90021.0,90020.0,0.001]
[1765220511875,0.05576664,90021.0,90020.0,0.001]
[1765220513075,0.0667109,90003.0,90002.0,0.00016664]
[1765220513370,0.0667109,90003.0,90002.0,4e-08]
[1765220513674,0.0556,89987.0,89986.0,0.07946552]
[1765220513878,0.0556,89990.0,89989.0,0.02957]
[1765220514079,0.0556,89990.0,89989.0,0.05938]
[1765220514573,0.0667117,89997.0,89996.0,0.02957]
[1765220514775,0.0667117,89997.0,89996.0,0.0704918]
[1765220515169,0.0667117,89997.0,89996.0,0.05938]
[1765220515782,0.0111117,89997.0,89996.0,0.05938]
[1765220516079,0.05576664,89998.0,89997.0,0.05938]
[1765220516480,0.05576664,89998.0,89997.0,0.0704917]
[1765220516875,0.0556,89982.0,89981.0,0.00016664]
[1765220517583,0.0556,89982.0,89981.0,0.02973664]
[1765220517778,0.0556,89982.0,89981.0,0.00016664]
[1765220518671,0.0556,89982.0,89981.0,0.05954664]
[1765220518869,0.02788,89982.0,89981.0,0.05954664]
[1765220519272,0.0556,89982.0,89981.0,0.06054664]
[1765220519683,0.0111131,89986.0,89985.0,0.05938]
[1765220519896,0.00016664,89998.0,89981.0,0.00116664]
[1765220519897,0.0667135,89982.0,89981.0,0.00116664]
[1765220520582,0.0692039,89979.0,89978.0,0.00012331]
[1765220520772,0.0692056,89965.0,89964.0,0.08113]
[1765220521284,0.0397586,89941.0,89940.0,0.05637]
[1765220521576,0.0284766,89958.0,89937.0,0.08759935]
[1765220521577,0.01736,89958.0,89937.0,0.08759935]
[1765220521778,0.05809,89949.0,89948.0,0.05637]
[1765220522278,0.02945,89937.0,89936.0,0.0111191]
[1765220522580,0.02864,89937.0,89936.0,0.08033893]
[1765220522783,0.0277579,89947.0,89939.0,0.0111187]
[1765220522974,0.0692083,89944.0,89943.0,0.02714]
[1765220523570,0.01664,89947.0,89936.0,0.03099208]
[1765220523571,0.05809,89937.0,89936.0,0.02814]
[1765220523981,0.05809,89937.0,89936.0,0.001]
[1765220524683,0.05809,89920.0,89919.0,0.00022242]
[1765220525574,0.05809,89920.0,89919.0,0.02736242]
[1765220525774,0.05809,89920.0,89919.0,0.00122242]
[1765220526180,0.05809,89920.0,89911.0,0.00016675]
[1765220526181,0.0692122,89912.0,89911.0,0.00016675]
[1765220527673,0.069213,89905.0,89893.0,1.5]
[1765220527887,0.069213,89905.0,89890.0,0.23127888]
[1765220528091,0.069213,89905.0,89892.0,0.0111245]
[1765220528476,0.069213,89905.0,89895.0,0.0111242]
[1765220528676,0.069213,89905.0,89896.0,0.00016684]
[1765220528983,0.069213,89905.0,89904.0,0.00412506]
[1765220530273,0.02864,89905.0,89904.0,0.06049506]
[1765220530575,0.05809,89912.0,89911.0,0.0111223]
[1765220530783,0.0111223,89911.0,89907.0,0.0111227]
[1765220530980,0.01736,89916.0,89907.0,0.0111227]
[1765220531178,0.05809,89912.0,89911.0,0.05637]
[1765220531582,0.05809,89912.0,89911.0,0.05737]
[1765220531888,0.05809,89912.0,89911.0,0.0684923]
[1765220532280,0.05809,89912.0,89911.0,0.02814]
[1765220533174,0.0402215,89918.0,89917.0,0.02781]
[1765220533386,0.0675615,89918.0,89917.0,0.02781]
[1765220533588,0.05644,89918.0,89917.0,0.05747]
[1765220534292,0.05644,89912.0,89911.0,0.02881]
[1765220534588,0.05654371,89920.0,89919.0,0.05747]
[1765220534790,0.05644,89919.0,89918.0,0.0111214]
[1765220534986,0.05644,89919.0,89910.0,0.29178587]
[1765220535187,0.05644,89919.0,89904.0,0.01809506]
[1765220535386,0.00010371,89920.0,89911.0,0.02881]
[1765220535387,0.0291,89912.0,89911.0,0.02881]
[1765220535692,0.05644,89912.0,89911.0,0.05847]
[1765220536191,0.0291,89912.0,89911.0,0.05747]
[1765220536390,0.0291,89912.0,89911.0,0.0685923]
[1765220536588,0.0111214,89918.0,89915.0,0.0111217]
[1765220536892,0.05644,89918.0,89917.0,0.05747]
[1765220537887,0.00010371,89920.0,89919.0,0.05747]
[1765220539100,0.05654371,89920.0,89919.0,0.05747]
[1765220539289,0.06766491,89920.0,89919.0,0.05747]
[1765220539491,0.06766491,89920.0,89919.0,0.02781]
[1765220540098,0.06766491,89920.0,89919.0,0.05747]
[1765220540099,0.00110371,89920.0,89919.0,0.05747]
[1765220541486,0.00016675,89928.0,89927.0,0.0685903]
[1765220542388,0.00021037,89928.0,89927.0,0.0685903]
[1765220542993,0.05644,89947.0,89946.0,0.05747]
[1765220544191,0.0371,89947.0,89946.0,0.05747]
[1765220544397,0.0411,89947.0,89946.0,0.05747]
[1765220545483,0.06844,89947.0,89946.0,0.05747]
[1765220545998,0.06044,89947.0,89946.0,0.05947]
[1765220546900,0.00016684,89955.0,89954.0,0.068587]
[1765220549101,0.05660684,89955.0,89954.0,0.068587]
[1765220549696,0.00016684,89955.0,89954.0,0.068587]
[1765220551502,0.05644,89974.0,89973.0,0.05747]
[1765220551695,0.08313498,89974.0,89973.0,0.05747]
[1765220552206,0.05644,89974.0,89973.0,0.05747]
[1765220552698,0.005,89974.0,89973.0,0.05747]
[1765220553102,0.005,89974.0,89973.0,0.0685846]
[1765220553289,0.007,89974.0,89973.0,0.0685846]
[1765220554202,0.00016674,89982.0,89981.0,0.0685836]
[1765220555900,0.00016674,89982.0,89981.0,0.0715836]
[1765220556400,0.00016674,89982.0,89981.0,0.0735836]
[1765220556598,0.0111108,90004.0,89981.0,0.0735836]
[1765220556599,0.0291,90004.0,90003.0,0.0685808]
[1765220557199,0.05666242,90009.0,90008.0,0.05747]
[1765220557905,0.05666242,90009.0,90008.0,0.07180889]
[1765220558302,0.00022242,90009.0,90008.0,0.07180889]
[1765220558901,0.00322242,90009.0,90008.0,0.07180889]
[1765220559300,0.00422242,90009.0,90008.0,0.07180889]
[1765220559903,0.03332242,90009.0,90008.0,0.07180889]
[1765220560099,0.00422242,90009.0,90008.0,0.07180889]
[1765220560296,0.05644,90000.0,89999.0,0.02797674]
[1765220560497,0.07413,90000.0,89999.0,0.02797674]
[1765220560709,0.05644,90000.0,89999.0,0.05763674]
[1765220561104,0.0675505,90007.0,90006.0,0.05747]
[1765220561510,0.00122242,90009.0,90008.0,0.05747]
[1765220561904,0.03032242,90009.0,90008.0,0.05747]
[1765220562109,0.05766242,90009.0,90008.0,0.05747]
[1765220562411,0.05766242,90009.0,90000.0,0.01682]
[1765220562412,0.05469,90001.0,90000.0,0.02932]
[1765220563001,0.0658012,90001.0,90000.0,0.02932]
[1765220563197,0.05469,90001.0,90000.0,0.02932]
[1765220563506,0.07105,90000.0,89999.0,0.00016674]
[1765220564096,0.07105,90000.0,89999.0,0.01127814]
[1765220564302,0.05469,90000.0,89999.0,0.05903674]
[1765220564923,0.07105,90000.0,89999.0,0.00016674]
[1765220565302,0.07105,90000.0,89999.0,0.00116674]
[1765220565509,0.05469,89980.0,89979.0,0.5895839]
[1765220566014,0.0658015,89998.0,89997.0,0.05887]
[1765220566707,0.027,89990.0,89989.0,0.02948674]
[1765220566905,0.07105,89990.0,89989.0,0.00016674]
[1765220567211,0.07105,89990.0,89989.0,0.02948674]
[1765220567598,0.07105,89990.0,89989.0,0.00016674]
[1765220568213,0.07105,89990.0,89989.0,0.00216674]
[1765220568601,0.05469,89973.0,89972.0,0.0699846]
[1765220569212,0.05469,89973.0,89972.0,0.0111146]
[1765220569415,0.05469,89973.0,89972.0,0.0404346]
[1765220569613,0.05469,89973.0,89972.0,0.0699846]
[1765220569802,0.05469,89973.0,89972.0,0.0719846]
[1765220570403,0.05469,89973.0,89972.0,0.0699846]
[1765220570610,0.05469,89973.0,89972.0,0.05987]
[1765220570812,0.05469,89973.0,89972.0,0.06387]
[1765220571014,0.00016674,89981.0,89980.0,0.07605]
[1765220571511,0.05469,90002.0,90001.0,0.02955]
[1765220571704,0.05469,90002.0,90001.0,0.05887]
[1765220572111,0.027,90002.0,90001.0,0.05887]
[1765220572309,0.05469,89997.0,89996.0,0.0699817]
[1765220574216,0.05469,89989.0,89988.0,0.00016674]
[1765220575012,0.05469,89989.0,89960.0,0.0282962]
[1765220575013,0.05925,89969.0,89962.0,0.0111159]
[1765220575220,0.05925,89969.0,89958.0,0.0111164]
[1765220575719,0.05925,89969.0,89953.0,0.0111171]
[1765220575920,0.05925,89969.0,89952.0,0.01431009]
[1765220576113,0.05925,89969.0,89964.0,0.0111156]
[1765220576813,0.05925,89969.0,89960.0,0.00016674]
[1765220577013,0.06025,89969.0,89960.0,0.00016674]
[1765220577513,0.06025,89969.0,89963.0,0.0111157]
[1765220577714,0.06025,89969.0,89960.0,0.00016674]
[1765220577922,0.06225,89969.0,89960.0,0.00016674]
[1765220578110,0.06225,89969.0,89961.0,0.0111161]
[1765220578716,0.06225,89969.0,89960.0,0.00016674]
[1765220578918,0.08898084,89969.0,89960.0,0.01128294]
[1765220579118,0.08898084,89969.0,89960.0,0.00016674]
[1765220579322,0.08898078,89969.0,89960.0,0.00016674]
[1765220580120,0.08898078,89969.0,89963.0,0.0111158]
[1765220580311,0.08898078,89969.0,89960.0,0.00016674]
[1765220580511,0.0691661,89961.0,89960.0,0.00016674]
[1765220580711,0.01636,89947.0,89914.0,0.07913783]
[1765220580912,0.01636,89947.0,89911.0,0.09845545]
[1765220580913,0.02925,89939.0,89938.0,0.0685989]
[1765220581112,0.05805,89939.0,89938.0,0.0685989]
[1765220581312,0.01636,89947.0,89941.0,0.0111185]
[1765220581624,0.05805,89942.0,89941.0,0.05748]
[1765220581923,8.053e-05,89946.0,89945.0,0.05748]
[1765220583623,8.053e-05,89946.0,89945.0,0.06148]
[1765220584007,0.05813053,89946.0,89945.0,0.06148]
[1765220584214,0.05813053,89946.0,89941.0,0.003]
[1765220584215,0.05805,89942.0,89941.0,0.003]
[1765220584414,0.05805,89936.0,89935.0,0.02917674]
[1765220584717,0.07595,89936.0,89935.0,0.00016674]
[1765220584927,0.05805,89936.0,89935.0,0.00016674]
[1765220585122,8.053e-05,89946.0,89936.0,0.0111192]
[1765220585314,8.053e-05,89946.0,89935.0,0.05764674]
[1765220585315,0.05813053,89946.0,89945.0,0.002]
[1765220585919,0.0111181,89945.0,89935.0,0.01128604]
[1765220586116,0.05805,89939.0,89938.0,0.02901]
[1765220586315,0.05805,89939.0,89938.0,0.05748]
[1765220587117,0.01119863,89946.0,89945.0,0.0685981]
[1765220587118,8.053e-05,89946.0,89945.0,0.0685981]
[1765220588621,8.053e-05,89946.0,89945.0,0.0705981]
[1765220589617,0.0179,89980.0,89952.0,0.0860872]
[1765220589817,0.0179,89980.0,89961.0,0.0111161]
[1765220589818,0.0111154,89967.0,89961.0,0.0111161]
[1765220590320,0.02925,89965.0,89964.0,0.0685957]
[1765220590629,0.05805,89971.0,89970.0,0.011115]
[1765220590930,0.05805,89971.0,89970.0,0.02901]
[1765220591231,0.0111148,89972.0,89962.0,0.00016674]
[1765220591232,0.0691659,89963.0,89962.0,0.00016674]
[1765220592927,0.0701659,89963.0,89962.0,0.00016674]
[1765220593130,0.02727,89938.0,89937.0,0.039049]
[1765220593426,0.02727,89938.0,89937.0,0.068279]
[1765220593829,0.0111155,89967.0,89947.0,0.01753]
[1765220594032,0.011117,89954.0,89953.0,0.05716]
[1765220594520,0.0111166,89957.0,89956.0,0.05716]
[1765220594722,0.0383866,89957.0,89956.0,0.05716]
[1765220594939,0.0682666,89957.0,89956.0,0.02793]
[1765220595119,0.0682666,89957.0,89947.0,0.01753]
[1765220595120,0.0682675,89951.0,89950.0,0.05716]
[1765220595325,0.0682678,89947.0,89946.0,0.02809674]
[1765220595523,0.0682678,89947.0,89946.0,0.00016674]
[1765220595723,0.05715,89947.0,89946.0,0.05732674]
[1765220596321,0.07499,89947.0,89946.0,0.00016674]
[1765220596522,0.05715,89947.0,89946.0,0.03109674]
[1765220596732,0.05715,89947.0,89946.0,0.06032674]
[1765220596939,0.0179,89969.0,89954.0,0.02923]
[1765220597129,0.02727,89956.0,89955.0,0.0682768]
[1765220597330,0.05715,89954.0,89953.0,0.02793]
[1765220597531,0.0861078,89947.0,89946.0,0.00316674]
[1765220597733,0.0861078,89947.0,89946.0,0.00416674]
[1765220598329,0.0861078,89947.0,89946.0,0.00316674]
[1765220598728,0.0861078,89947.0,89946.0,0.00016674]
[1765220598937,0.0861078,89947.0,89946.0,0.00116674]
[1765220599334,0.05715,89934.0,89933.0,0.0682795]
[1765220599732,0.0682688,89939.0,89938.0,0.0682789]
[1765220600333,0.0682688,89939.0,89938.0,0.05716]
[1765220601135,0.02727,89944.0,89943.0,0.05716]
[1765220601335,0.01128454,89947.0,89946.0,0.05716]
[1765220601536,0.00016674,89947.0,89946.0,0.05716]
[1765220602240,0.02743674,89947.0,89946.0,0.05716]
[1765220603730,0.00016674,89947.0,89946.0,0.05716]
[1765220604935,0.05731674,89947.0,89946.0,0.05716]
[1765220605232,0.00016674,89947.0,89946.0,0.05916]
[1765220606232,0.00016674,89947.0,89946.0,0.06116]
[1765220606639,0.0111162,89961.0,89958.0,0.0111164]
[1765220606836,0.0111162,89961.0,89946.0,0.06216]
[1765220606837,0.0383858,89964.0,89963.0,0.05716]
[1765220607042,0.06522337,89964.0,89963.0,0.05716]
[1765220607241,0.09510337,89964.0,89963.0,0.05716]
[1765220607639,0.0682668,89956.0,89955.0,0.05716]
[1765220607836,0.0682668,89956.0,89955.0,0.00016674]
[1765220608033,0.0682668,89956.0,89955.0,0.02809674]
[1765220608446,0.05715,89956.0,89955.0,0.05732674]
[1765220608638,0.02727,89956.0,89955.0,0.05732674]
[1765220608838,0.02727,89956.0,89955.0,0.05832674]
[1765220609537,0.05715,89956.0,89955.0,0.05832674]
[1765220609953,0.02727,89960.0,89959.0,0.05716]
[1765220610468,0.05715,89960.0,89959.0,0.05716]
[1765220612265,0.0682667,89956.0,89955.0,0.05732674]
[1765220612655,0.05715,89956.0,89955.0,0.05732674]
[1765220613161,0.05715,89956.0,89955.0,0.00016674]
[1765220613360,0.05715,89956.0,89955.0,0.001]
[1765220613361,0.09509404,89956.0,89955.0,0.001]
[1765220613756,0.02988,89933.0,89932.0,0.0682796]
[1765220613951,0.05715,89933.0,89932.0,0.0682796]
[1765220614564,0.02727,89933.0,89932.0,0.0682796]